[Event "46th GRE-chT Premier 2018"]
[Site "Rio Achaia"]
[Date "2018.07.10"]
[Round "1"]
[White "Sourgkounis, Angelos"]
[Black "Petrakis, Ilias"]
[Result "1/2-1/2"]
[ECO "A05"]
[WhiteElo "1976"]
[BlackElo "2118"]
[Annotator "NA"]
[PlyCount "123"]
[EventDate "2018.07.10"]
[EventType "team-tourn"]
[EventCountry "GRE"]
[SourceTitle "playchess.com"]
[Source "ChessBase"]
[SourceQuality "1"]
[TimeControl "40/5400+30:1800+30"]

1. Nf3 {[%emt 0:00:00]} Nf6 {[%emt 0:00:00]} 2. c4 {[%emt 0:00:00]} g6 {[%emt 0:00:00]} 3. b4 {[%emt 0:00:00]} Bg7 {[%emt 0:00:09]} 4. Bb2 {[%emt 0:00:00]} d6 {[%emt 0:00:23]} 5. e3 {[%emt 0:00:20]} O-O {[%emt 0:01:48]} 6. Be2 {[%emt 0:00:32]} e5 {[%emt 0:00:23]} 7. Nc3 {[%emt 0:00:12]} Nc6 {[%emt 0:02:51]} 8. b5 {[%emt 0:04:19]} Ne7 {[%emt 0:04:44]} 9. d4 {[%emt 0:01:59]} exd4 {[%emt 0:00:57]} 10. Nxd4 {[%emt 0:00:32]} Nd7 {[%emt 0:16:47]} 11. O-O {[%emt 0:02:06]} Nc5 {[%emt 0:02:02]} 12. Bf3 {[%emt 0:00:18]} Nf5 {[%emt 0:01:11]} 13. g3 {[%emt 0:09:34]} h5 {[%emt 0:04:03]} 14. Na4 {[%emt 0:08:52]} Qg5 {[%emt 0:06:16]} 15. Nxf5 {[%emt 0:07:04]} Bxb2 {[%emt 0:00:09]} 16. Nh6+ {[%emt 0:04:07]} Qxh6 {[%emt 0:00:13]} 17. Nxb2 {[%emt 0:00:01]} h4 {[%emt 0:02:27]} 18. Qd4 {[%emt 0:08:07]} hxg3 {[%emt 0:00:36]} 19. hxg3 {[%emt 0:00:22]} Bf5 {[%emt 0:07:20]} 20. Rfe1 {[%emt 0:08:14]} Rae8 {[%emt 0:04:18]} 21. e4 {[%emt 0:02:27]} Bc8 {[%emt 0:00:08]} 22. Nd3 {[%emt 0:07:31]} Nxd3 {[%emt 0:08:30]} 23. Qxd3 {[%emt 0:00:15]} Re5 {[%emt 0:00:49]} 24. Bg2 {[%emt 0:01:09]} Rfe8 {[%emt 0:01:28]} 25. f4 {[%emt 0:03:58]} Rc5 {[%emt 0:00:41]} 26. Kf2 {[%emt 0:02:05]} Qg7 {[%emt 0:00:27]} 27. Rad1 {[%emt 0:01:08]} Be6 {[%emt 0:02:17]} 28. Rc1 {[%emt 0:03:01]} Qf6 {[%emt 0:00:33]} 29. Bf3 {[%emt 0:05:57]} Kg7 {[%emt 0:02:35]} 30. Ke3 {[%emt 0:00:43]} Rh8 {[%emt 0:01:50]} 31. Qd4 {[%emt 0:05:00]} b6 {[%emt 0:05:28]} 32. Rh1 {[%emt 0:02:42]} Rxh1 {[%emt 0:01:26]} 33. Bxh1 {[%emt 0:00:03]} Qxd4+ {[%emt 0:04:45]} 34. Kxd4 {[%emt 0:00:05]} Rh5 {[%emt 0:00:10]} 35. Bf3 {[%emt 0:04:57]} Rh2 {[%emt 0:00:43]} 36. a3 {[%emt 0:00:09]} Rd2+ {[%emt 0:02:58]} 37. Ke3 {[%emt 0:00:17]} Ra2 {[%emt 0:01:04]} 38. Rc3 {[%emt 0:00:16]} f6 {[%emt 0:03:35]} 39. g4 {[%emt 0:03:16]} g5 {[%emt 0:01:17]} 40. f5 {[%emt 0:00:00]} Bc8 {[%emt 0:00:00]} 41. Be2 {[%emt 0:11:53]} Kf8 {[%emt 0:04:21]} 42. Bf3 {[%emt 0:00:49]} Ke7 {[%emt 0:01:36]} 43. Kd4 {[%emt 0:00:17]} a6 {[%emt 0:02:40]} 44. Ke3 {[%emt 0:02:26]} Kd8 {[%emt 0:00:41]} 45. Bd1 {[%emt 0:06:40]} Rb2 {[%emt 0:01:15]} 46. a4 {[%emt 0:02:44]} Rh2 {[%emt 0:05:31]} 47. Ra3 {[%emt 0:04:27]} a5 {[%emt 0:01:39]} 48. Rc3 {[%emt 0:00:12]} Ke7 {[%emt 0:00:40]} 49. Rc2 {[%emt 0:01:10]} Rh1 {[%emt 0:01:16]} 50. Rd2 {[%emt 0:00:15]} Bd7 {[%emt 0:00:20]} 51. Bf3 {[%emt 0:05:37]} Ra1 {[%emt 0:04:08]} 52. Rh2 {[%emt 0:03:08]} Ra3+ {[%emt 0:00:06]} 53. Kf2 {[%emt 0:00:19]} Ra2+ {[%emt 0:00:10]} 54. Kg3 {[%emt 0:03:42]} Rxh2 {[%emt 0:02:34]} 55. Kxh2 {[%emt 0:00:04]} Be8 {[%emt 0:00:36]} 56. Kg3 {[%emt 0:01:15]} Bf7 {[%emt 0:00:25]} 57. Be2 {[%emt 0:00:15]} c6 {[%emt 0:01:28]} 58. bxc6 {[%emt 0:00:39]} Kd8 {[%emt 0:00:09]} 59. Kf3 {[%emt 0:01:03]} Kc7 {[%emt 0:00:09]} 60. Ke3 {[%emt 0:00:12]} Kxc6 {[%emt 0:00:17]} 61. Kd4 {[%emt 0:00:06]} Be8 {[%emt 0:01:03]} 62. Bd1 {[%emt 0:00:17] Kd5+} 1/2-1/2

[Event "46th GRE-chT Premier 2018"]
[Site "Rio Achaia"]
[Date "2018.07.10"]
[Round "1"]
[White "Vozinaki, Anthi - Maria"]
[Black "Liapi Zenebisi, Irini"]
[Result "0-1"]
[ECO "B33"]
[WhiteElo "1971"]
[BlackElo "1788"]
[Annotator "NA"]
[PlyCount "70"]
[EventDate "2018.07.10"]
[EventType "team-tourn"]
[EventCountry "GRE"]
[SourceTitle "playchess.com"]
[Source "ChessBase"]
[SourceQuality "1"]
[TimeControl "40/5400+30:1800+30"]

1. e4 {[%emt 0:00:00]} c5 {[%emt 0:00:00]} 2. Nf3 {[%emt 0:00:00]} Nc6 {[%emt 0:00:00]} 3. d4 {[%emt 0:00:00]} cxd4 {[%emt 0:00:00]} 4. Nxd4 {[%emt 0:00:02]} Nf6 {[%emt 0:00:00]} 5. Nc3 {[%emt 0:00:09]} e6 {[%emt 0:00:00]} 6. Ndb5 {[%emt 0:02:02]} Bb4 {[%emt 0:00:01]} 7. a3 {[%emt 0:02:15]} Bxc3+ {[%emt 0:00:08]} 8. Nxc3 {[%emt 0:00:07]} d5 {[%emt 0:00:50]} 9. exd5 {[%emt 0:01:02]} exd5 {[%emt 0:00:06]} 10. Bd3 {[%emt 0:02:21]} O-O {[%emt 0:00:45]} 11. O-O {[%emt 0:08:02]} d4 {[%emt 0:05:56]} 12. Ne2 {[%emt 0:01:59]} Bg4 {[%emt 0:10:50]} 13. f3 {[%emt 0:11:07]} Bh5 {[%emt 0:01:48]} 14. Bg5 {[%emt 0:06:01]} Bg6 {[%emt 0:06:13]} 15. Kh1 {[%emt 0:11:22]} Re8 {[%emt 0:16:03]} 16. Bxg6 {[%emt 0:04:05]} hxg6 {[%emt 0:00:09]} 17. Qd2 {[%emt 0:03:39]} Qb6 {[%emt 0:03:25]} 18. Rfd1 {[%emt 0:06:48]} Rad8 {[%emt 0:12:15]} 19. Ng3 {[%emt 0:12:57]} Ne5 {[%emt 0:14:34]} 20. Qb4 {[%emt 0:11:32]} Qxb4 {[%emt 0:06:02]} 21. axb4 {[%emt 0:00:05]} a6 22. Bxf6 gxf6 23. Ne4 Kg7 24. Nc5 Re7 25. Re1 Rc7 26. f4 Nc4 27. b3 Ne3 28. Re2 Nd5 29. Nd3 Rdc8 30. Ra5 Ne3 31. c4 dxc3 32. Rxe3 c2 33. Rc5 Rxc5 34. bxc5 Rd8 35. Re2 c1=Q+ {[%emt 0:24:17]} 0-1

[Event "46th GRE-chT Premier 2018"]
[Site "Rio Achaia"]
[Date "2018.07.10"]
[Round "1"]
[White "Moshovakis, Aggelos"]
[Black "Bebis, Epaminondas-Alexand"]
[Result "1-0"]
[ECO "B11"]
[WhiteElo "1964"]
[BlackElo "1554"]
[Annotator "NA"]
[PlyCount "83"]
[EventDate "2018.07.10"]
[EventType "team-tourn"]
[EventCountry "GRE"]
[SourceTitle "playchess.com"]
[Source "ChessBase"]
[SourceQuality "1"]
[TimeControl "40/5400+30:1800+30"]

1. e4 {[%emt 0:00:00]} c6 {[%emt 0:00:03]} 2. Nc3 {[%emt 0:00:00]} d5 {[%emt 0:00:38]} 3. Nf3 {[%emt 0:00:00]} Bg4 {[%emt 0:04:43]} 4. h3 {[%emt 0:00:00]} Bxf3 {[%emt 0:15:35]} 5. Qxf3 {[%emt 0:00:03]} e6 {[%emt 0:03:26]} 6. d3 {[%emt 0:01:00]} Bb4 {[%emt 0:06:10]} 7. a3 {[%emt 0:20:15]} Qa5 {[%emt 0:08:20]} 8. Bd2 {[%emt 0:05:38]} d4 {[%emt 0:08:50]} 9. Nb1 {[%emt 0:00:06]} Na6 {[%emt 0:00:40]} 10. c3 {[%emt 0:05:30]} dxc3 {[%emt 0:04:58]} 11. Nxc3 {[%emt 0:00:23]} Be7 {[%emt 0:12:44]} 12. Qg3 {[%emt 0:10:03]} Qb6 {[%emt 0:07:41]} 13. Qxg7 {[%emt 0:03:16]} Bf6 {[%emt 0:02:22]} 14. Qg3 {[%emt 0:00:06]} Ne7 {[%emt 0:02:00]} 15. O-O-O {[%emt 0:08:08]} Nc5 {[%emt 0:01:06]} 16. Kb1 {[%emt 0:01:36]} Rg8 {[%emt 0:05:31]} 17. Qe3 {[%emt 0:03:38]} O-O-O {[%emt 0:00:04]} 18. e5 {[%emt 0:04:30]} Nf5 {[%emt 0:00:24]} 19. Qe1 {[%emt 0:03:02]} Be7 {[%emt 0:00:33]} 20. g4 {[%emt 0:03:38]} Nd4 {[%emt 0:03:55]} 21. Be3 {[%emt 0:02:24]} Ncb3 {[%emt 0:02:25]} 22. Ka2 {[%emt 0:04:02]} Qa6 {[%emt 0:05:01]} 23. Ne2 {[%emt 0:04:32]} Nc2 {[%emt 0:02:56]} 24. Qc3 {[%emt 0:00:22]} Nxe3 {[%emt 0:01:06]} 25. fxe3 {[%emt 0:00:09]} Nc5 {[%emt 0:00:13]} 26. d4 {[%emt 0:01:03]} Ne4 {[%emt 0:00:34]} 27. Qc2 {[%emt 0:00:35]} f5 {[%emt 0:00:49]} 28. gxf5 {[%emt 0:00:56]} exf5 {[%emt 0:00:08]} 29. Ng3 {[%emt 0:00:24]} Qa5 {[%emt 0:00:38]} 30. Nxf5 {[%emt 0:00:11]} Bxa3 {[%emt 0:00:39]} 31. Qxe4 {[%emt 0:01:22]} Bxb2+ {[%emt 0:00:41]} 32. Kxb2 {[%emt 0:00:13]} Qb4+ {[%emt 0:00:09]} 33. Kc2 {[%emt 0:00:25]} Rd5 {[%emt 0:00:28]} 34. Qd3 {[%emt 0:01:21]} Rb5 {[%emt 0:00:49]} 35. Nd6+ {[%emt 0:00:39]} Kb8 {[%emt 0:00:38]} 36. Nxb5 {[%emt 0:00:17]} cxb5 {[%emt 0:00:02]} 37. Qb3 {[%emt 0:00:22]} Rc8+ {[%emt 0:00:12]} 38. Kb2 {[%emt 0:00:05]} Qf8 {[%emt 0:00:48]} 39. Rh2 {[%emt 0:02:16]} Qf3 {[%emt 0:00:56]} 40. Rc2 {[%emt 0:00:00]} Rf8 {[%emt 0:00:00]} 41. Bg2 {[%emt 0:03:07]} Qh5 {[%emt 0:06:50]} 42. Qd5 {[%emt 0:00:36]} 1-0

[Event "46th GRE-chT Premier 2018"]
[Site "Rio Achaia"]
[Date "2018.07.10"]
[Round "1"]
[White "Salahidou, Reveka"]
[Black "Moshou, Alexia"]
[Result "1-0"]
[ECO "B01"]
[WhiteElo "1955"]
[BlackElo "1582"]
[Annotator "NA"]
[PlyCount "53"]
[EventDate "2018.07.10"]
[EventType "team-tourn"]
[EventCountry "GRE"]
[SourceTitle "playchess.com"]
[Source "ChessBase"]
[SourceQuality "1"]
[TimeControl "40/5400+30:1800+30"]

1. e4 {[%emt 0:00:00]} d5 {[%emt 0:00:27]} 2. exd5 {[%emt 0:00:00]} Qxd5 {[%emt 0:00:07]} 3. Nc3 {[%emt 0:00:00]} Qa5 {[%emt 0:00:12]} 4. Bc4 {[%emt 0:00:00]} e6 {[%emt 0:00:29]} 5. d4 {[%emt 0:03:10]} Bb4 {[%emt 0:14:18]} 6. Bd2 {[%emt 0:01:44]} c5 {[%emt 0:10:38]} 7. a3 {[%emt 0:06:44]} Bxc3 {[%emt 0:09:13]} 8. Bxc3 {[%emt 0:00:06]} Qc7 {[%emt 0:02:54]} 9. d5 {[%emt 0:37:07]} exd5 {[%emt 0:07:38]} 10. Bxg7 {[%emt 0:20:22]} dxc4 {[%emt 0:02:52]} 11. Bxh8 {[%emt 0:02:42]} f6 {[%emt 0:06:40]} 12. Qh5+ {[%emt 0:04:38]} Qf7 {[%emt 0:00:37]} 13. Qh4 {[%emt 0:00:40]} Nc6 {[%emt 0:02:11]} 14. O-O-O {[%emt 0:01:50]} Ne5 {[%emt 0:03:28]} 15. Nf3 {[%emt 0:01:07]} Ng6 {[%emt 0:05:48]} 16. Rhe1+ {[%emt 0:00:29]} Be6 {[%emt 0:00:56]} 17. Qxc4 {[%emt 0:02:04]} Nf8 {[%emt 0:05:43]} 18. Qb5+ {[%emt 0:00:46]} Nd7 {[%emt 0:01:49]} 19. Rxe6+ {[%emt 0:00:47]} Qxe6 {[%emt 0:01:15]} 20. Re1 {[%emt 0:00:05]} Qxe1+ {[%emt 0:00:23]} 21. Nxe1 {[%emt 0:00:05]} Rb8 {[%emt 0:01:58]} 22. Qc4 {[%emt 0:00:27]} Ke7 {[%emt 0:00:56]} 23. Nd3 {[%emt 0:00:34]} Kf8 {[%emt 0:07:13]} 24. Nxc5 {[%emt 0:00:39]} Ne5 {[%emt 0:00:47]} 25. Ne6+ {[%emt 0:00:28]} Ke7 {[%emt 0:00:12]} 26. Qc7+ {[%emt 0:00:15]} Nd7 {[%emt 0:00:13]} 27. Nc5 {[%emt 0:00:23]} 1-0

[Event "46th GRE-chT Premier 2018"]
[Site "Rio Achaia"]
[Date "2018.07.10"]
[Round "1"]
[White "Spiliopoulos, Alexios"]
[Black "Sidiropoulos, Nikolaos"]
[Result "1-0"]
[ECO "A46"]
[WhiteElo "1943"]
[BlackElo "2112"]
[Annotator "NA"]
[PlyCount "113"]
[EventDate "2018.07.10"]
[EventType "team-tourn"]
[EventCountry "GRE"]
[SourceTitle "playchess.com"]
[Source "ChessBase"]
[SourceQuality "1"]
[TimeControl "40/5400+30:1800+30"]

1. d4 {[%emt 0:00:00]} Nf6 {[%emt 0:01:17]} 2. Nf3 {[%emt 0:00:00]} e6 {[%emt 0:00:06]} 3. c4 {[%emt 0:00:50]} c5 {[%emt 0:00:08]} 4. g3 {[%emt 0:01:43]} cxd4 {[%emt 0:05:16]} 5. Nxd4 {[%emt 0:06:10]} Qb6 {[%emt 0:10:04]} 6. Nc3 {[%emt 0:05:25]} a6 {[%emt 0:14:40]} 7. Bg2 {[%emt 0:03:10]} Bc5 {[%emt 0:07:28]} 8. e3 {[%emt 0:03:37]} O-O {[%emt 0:02:56]} 9. O-O {[%emt 0:00:14]} Be7 {[%emt 0:00:56]} 10. Na4 {[%emt 0:13:58]} Qc7 {[%emt 0:02:19]} 11. Qb3 {[%emt 0:03:03]} Nc6 {[%emt 0:03:05]} 12. Bd2 {[%emt 0:00:48]} Rb8 {[%emt 0:11:56]} 13. Rac1 {[%emt 0:15:28]} d6 {[%emt 0:01:38]} 14. Qb6 {[%emt 0:02:35]} Qxb6 {[%emt 0:03:11]} 15. Nxb6 {[%emt 0:00:01]} Ne5 {[%emt 0:00:32]} 16. b3 {[%emt 0:03:31]} Nfd7 {[%emt 0:03:29]} 17. Nxc8 {[%emt 0:02:59]} Rfxc8 {[%emt 0:00:07]} 18. f4 {[%emt 0:02:37]} Nd3 {[%emt 0:00:48]} 19. Rb1 {[%emt 0:03:08]} N3c5 {[%emt 0:11:33]} 20. Rfd1 {[%emt 0:04:15]} g6 {[%emt 0:02:22]} 21. Bb4 {[%emt 0:06:53]} Rd8 {[%emt 0:04:16]} 22. Ne2 {[%emt 0:04:46]} Nf6 {[%emt 0:03:48]} 23. Bxc5 {[%emt 0:00:07]} dxc5 {[%emt 0:00:05]} 24. Bf3 {[%emt 0:00:19]} b5 {[%emt 0:01:27]} 25. cxb5 {[%emt 0:04:04]} axb5 {[%emt 0:00:06]} 26. Nc3 {[%emt 0:00:53]} b4 {[%emt 0:04:26]} 27. Na4 {[%emt 0:01:22]} Nd5 {[%emt 0:00:22]} 28. Bxd5 {[%emt 0:00:02]} exd5 {[%emt 0:00:28]} 29. Rbc1 {[%emt 0:00:01]} Rbc8 {[%emt 0:00:16]} 30. Nb6 {[%emt 0:00:50]} Rb8 {[%emt 0:01:29]} 31. Nxd5 {[%emt 0:00:28]} Bf8 {[%emt 0:00:07]} 32. Nf6+ {[%emt 0:01:38]} Kg7 {[%emt 0:00:06]} 33. Nd7 {[%emt 0:00:13]} Ra8 {[%emt 0:01:08]} 34. Nxf8 {[%emt 0:00:06]} Rxf8 {[%emt 0:00:12]} 35. Rd2 {[%emt 0:00:39]} Rfd8 {[%emt 0:02:49]} 36. Rxd8 {[%emt 0:00:52]} Rxd8 {[%emt 0:00:01]} 37. Rxc5 {[%emt 0:00:21]} Rd2 {[%emt 0:02:25]} 38. Rc4 {[%emt 0:00:56]} Rxa2 {[%emt 0:00:05]} 39. Rxb4 {[%emt 0:00:04]} f5 {[%emt 0:00:07]} 40. e4 {[%emt 0:00:00]} fxe4 {[%emt 0:00:00]} 41. Rxe4 {[%emt 0:04:07]} Rb2 {[%emt 0:00:21]} 42. Re3 {[%emt 0:00:40]} h5 {[%emt 0:00:43]} 43. h3 {[%emt 0:00:19]} Kf6 {[%emt 0:01:36]} 44. Kf1 {[%emt 0:03:41]} h4 {[%emt 0:07:19]} 45. g4 {[%emt 0:02:00]} Kf7 {[%emt 0:01:20]} 46. Ke1 {[%emt 0:01:44]} Kf6 {[%emt 0:00:16]} 47. Rf3 {[%emt 0:00:14]} Rg2 {[%emt 0:05:59]} 48. f5 {[%emt 0:03:46]} g5 {[%emt 0:00:26]} 49. Re3 {[%emt 0:00:21]} Kf7 {[%emt 0:01:48]} 50. Kd1 {[%emt 0:00:12]} Kf8 {[%emt 0:01:07]} 51. Kc1 {[%emt 0:00:12]} Rg3 {[%emt 0:01:55]} 52. Kd2 {[%emt 0:00:10]} Rg2+ {[%emt 0:00:31]} 53. Kd3 {[%emt 0:00:09]} Kf7 {[%emt 0:00:04]} 54. b4 {[%emt 0:00:07]} Rb2 {[%emt 0:00:04]} 55. Kc4 {[%emt 0:00:25]} Rg2 {[%emt 0:00:07]} 56. b5 {[%emt 0:00:18]} Rg3 {[%emt 0:00:04]} 57. Kd4 {[%emt 0:00:13]} 1-0

[Event "46th GRE-chT Premier 2018"]
[Site "Rio Achaia"]
[Date "2018.07.10"]
[Round "1"]
[White "Karaboikis, Spiridon"]
[Black "Mihopoulos, Konstantinos"]
[Result "0-1"]
[ECO "D00"]
[WhiteElo "1942"]
[BlackElo "2097"]
[Annotator "NA"]
[PlyCount "84"]
[EventDate "2018.07.10"]
[EventType "team-tourn"]
[EventCountry "GRE"]
[SourceTitle "playchess.com"]
[Source "ChessBase"]
[SourceQuality "1"]
[TimeControl "40/5400+30:1800+30"]

1. d4 {[%emt 0:00:00]} d5 {[%emt 0:00:00]} 2. Bf4 {[%emt 0:00:00]} c5 {[%emt 0:00:00]} 3. e3 {[%emt 0:00:30]} Nc6 {[%emt 0:00:00]} 4. c3 {[%emt 0:00:30]} Nf6 {[%emt 0:03:28]} 5. Nd2 {[%emt 0:01:39]} Bf5 {[%emt 0:02:12]} 6. Qb3 {[%emt 0:01:24]} Qc8 {[%emt 0:03:21]} 7. Ngf3 {[%emt 0:02:26]} e6 {[%emt 0:02:00]} 8. Nh4 {[%emt 0:04:54]} Bg4 {[%emt 0:02:41]} 9. h3 {[%emt 0:02:06]} Bh5 {[%emt 0:00:07]} 10. g4 {[%emt 0:05:16]} Bg6 {[%emt 0:00:13]} 11. Nxg6 {[%emt 0:00:42]} hxg6 {[%emt 0:00:03]} 12. Bg2 {[%emt 0:00:11]} c4 {[%emt 0:09:12]} 13. Qc2 {[%emt 0:01:38]} Be7 {[%emt 0:01:18]} 14. e4 {[%emt 0:09:08]} b5 {[%emt 0:10:46]} 15. exd5 {[%emt 0:19:59]} Nxd5 {[%emt 0:01:24]} 16. Bg3 {[%emt 0:00:10]} O-O {[%emt 0:10:17]} 17. O-O {[%emt 0:03:44]} g5 {[%emt 0:06:21]} 18. Qe4 {[%emt 0:04:37]} Qd7 {[%emt 0:02:48]} 19. Rae1 {[%emt 0:05:19]} Rac8 {[%emt 0:04:39]} 20. Nf3 {[%emt 0:06:36]} b4 {[%emt 0:06:28]} 21. Qc2 {[%emt 0:05:47]} a5 {[%emt 0:03:15]} 22. Ne5 {[%emt 0:03:36]} Nxe5 {[%emt 0:00:30]} 23. Rxe5 {[%emt 0:00:10]} Bd6 {[%emt 0:02:56]} 24. Re2 {[%emt 0:00:55]} Nf4 {[%emt 0:12:17]} 25. Bxf4 {[%emt 0:02:23]} Bxf4 {[%emt 0:00:02]} 26. Rfe1 {[%emt 0:02:29]} Rfd8 {[%emt 0:03:40]} 27. Qe4 {[%emt 0:00:32]} Qa4 {[%emt 0:00:58]} 28. Ra1 {[%emt 0:10:01]} Rb8 {[%emt 0:00:56]} 29. Qc6 {[%emt 0:00:25]} Qxc6 {[%emt 0:01:30]} 30. Bxc6 {[%emt 0:00:01]} Rb6 {[%emt 0:00:22]} 31. Be4 {[%emt 0:00:55]} bxc3 {[%emt 0:01:24]} 32. bxc3 {[%emt 0:00:09]} Rdb8 {[%emt 0:00:03]} 33. Kf1 {[%emt 0:02:33]} a4 {[%emt 0:00:32]} 34. Ke1 {[%emt 0:01:22]} a3 {[%emt 0:00:18]} 35. Kd1 {[%emt 0:00:11]} Kf8 {[%emt 0:00:48]} 36. Bc2 {[%emt 0:00:39]} Ke7 {[%emt 0:00:52]} 37. f3 {[%emt 0:02:12]} Kd6 {[%emt 0:00:36]} 38. Re4 {[%emt 0:00:40]} Rh8 {[%emt 0:00:33]} 39. Rb1 {[%emt 0:01:49]} Rxb1+ {[%emt 0:01:07]} 40. Bxb1 {[%emt 0:00:00]} Rxh3 {[%emt 0:00:00]} 41. Ke2 {[%emt 0:00:24]} Rh2+ {[%emt 0:03:50]} 42. Kd1 {[%emt 0:00:09]} Rd2+ {[%emt 0:00:07]} 0-1

[Event "46th GRE-chT Premier 2018"]
[Site "Rio Achaia"]
[Date "2018.07.10"]
[Round "1"]
[White "Loukopoulos, Panagiotis-Athanasi"]
[Black "Alexiadis, Hristos"]
[Result "1/2-1/2"]
[ECO "B53"]
[WhiteElo "1942"]
[BlackElo "2244"]
[Annotator "NA"]
[PlyCount "116"]
[EventDate "2018.07.10"]
[EventType "team-tourn"]
[EventCountry "GRE"]
[SourceTitle "playchess.com"]
[Source "ChessBase"]
[SourceQuality "1"]
[TimeControl "40/5400+30:1800+30"]

1. e4 {[%emt 0:00:00]} c5 {[%emt 0:00:29]} 2. Nf3 {[%emt 0:00:00]} d6 {[%emt 0:00:43]} 3. d4 {[%emt 0:00:10]} cxd4 {[%emt 0:00:47]} 4. Qxd4 {[%emt 0:00:13]} Nc6 {[%emt 0:01:05]} 5. Bb5 {[%emt 0:01:02]} Bd7 {[%emt 0:00:42]} 6. Bxc6 {[%emt 0:00:18]} Bxc6 {[%emt 0:00:21]} 7. Nc3 {[%emt 0:00:16]} h6 {[%emt 0:02:12]} 8. Qd3 {[%emt 0:03:51]} Nf6 {[%emt 0:07:10]} 9. h3 {[%emt 0:06:25]} e5 {[%emt 0:00:26]} 10. Be3 {[%emt 0:17:03]} Be7 {[%emt 0:00:45]} 11. O-O-O {[%emt 0:00:45]} Qa5 {[%emt 0:00:08]} 12. Kb1 {[%emt 0:03:20]} Rd8 {[%emt 0:10:05]} 13. Nd2 {[%emt 0:07:25]} O-O {[%emt 0:21:00]} 14. Rhg1 {[%emt 0:15:32]} d5 {[%emt 0:05:09]} 15. Nb3 {[%emt 0:03:12]} Qc7 {[%emt 0:05:03]} 16. exd5 {[%emt 0:00:20]} Nxd5 {[%emt 0:01:57]} 17. Nxd5 {[%emt 0:00:07]} Bxd5 {[%emt 0:00:26]} 18. Qe2 {[%emt 0:14:53]} a5 {[%emt 0:09:16]} 19. Qb5 {[%emt 0:05:04]} Be4 {[%emt 0:00:21]} 20. Nc5 {[%emt 0:06:31]} Bc6 {[%emt 0:10:52]} 21. Qe2 {[%emt 0:00:39]} Bd5 {[%emt 0:02:55]} 22. Na4 {[%emt 0:02:16]} Qc6 {[%emt 0:05:54]} 23. Nc3 {[%emt 0:05:17]} Bc4 {[%emt 0:00:07]} 24. Qh5 {[%emt 0:00:24]} f5 {[%emt 0:07:49]} 25. Rxd8 {[%emt 0:00:35]} Bxd8 {[%emt 0:00:04]} 26. f4 {[%emt 0:03:23]} Bf7 {[%emt 0:01:21]} 27. Qe2 {[%emt 0:00:26]} exf4 {[%emt 0:02:30]} 28. Bxf4 {[%emt 0:00:12]} Bf6 {[%emt 0:01:31]} 29. Qb5 {[%emt 0:02:41]} Qe6 {[%emt 0:00:20]} 30. Qxa5 {[%emt 0:00:24]} Bxc3 {[%emt 0:01:02]} 31. bxc3 {[%emt 0:00:05]} b6 {[%emt 0:00:04]} 32. Qa6 {[%emt 0:01:47]} Qe4 {[%emt 0:00:09]} 33. g3 {[%emt 0:01:11]} Ra8 {[%emt 0:02:35]} 34. Qd3 {[%emt 0:00:28]} Qe7 {[%emt 0:00:34]} 35. Bd6 {[%emt 0:00:38]} Qe6 {[%emt 0:00:08]} 36. c4 {[%emt 0:00:32]} Rd8 {[%emt 0:00:20]} 37. Rd1 {[%emt 0:00:04]} Qc8 {[%emt 0:01:17]} 38. Qc3 {[%emt 0:00:58]} Qc6 {[%emt 0:00:21]} 39. Qb4 {[%emt 0:00:22]} Bxc4 {[%emt 0:00:24]} 40. Rd4 {[%emt 0:00:00]} b5 {[%emt 0:00:00]} 41. Kb2 {[%emt 0:15:07]} Bd5 {[%emt 0:08:41]} 42. Bf4 {[%emt 0:07:32]} Ra8 {[%emt 0:00:50]} 43. a3 {[%emt 0:00:04]} Rc8 {[%emt 0:01:12]} 44. Qd2 {[%emt 0:01:05]} Qf6 {[%emt 0:01:53]} 45. c3 {[%emt 0:03:42]} Bf7 {[%emt 0:02:38]} 46. Rd6 {[%emt 0:00:51]} Qe7 {[%emt 0:00:06]} 47. Qe3 {[%emt 0:02:20]} Qb7 {[%emt 0:01:03]} 48. Qd2 {[%emt 0:00:38]} Qa8 {[%emt 0:04:31]} 49. Be5 {[%emt 0:02:40]} Qe4 {[%emt 0:07:56]} 50. Bxg7 {[%emt 0:01:22]} Kxg7 {[%emt 0:05:26]} 51. Qxh6+ {[%emt 0:00:04]} Kg8 {[%emt 0:00:02]} 52. Qg5+ {[%emt 0:00:04]} Kf8 {[%emt 0:00:04]} 53. Qh6+ {[%emt 0:00:12]} Kg8 {[%emt 0:00:49]} 54. Qg5+ {[%emt 0:00:04]} Kf8 {[%emt 0:00:05]} 55. Qh6+ {[%emt 0:00:02]} Ke7 {[%emt 0:00:40]} 56. Qf6+ {[%emt 0:00:04]} Ke8 {[%emt 0:00:03]} 57. Qh8+ {[%emt 0:00:07]} Ke7 {[%emt 0:00:04]} 58. Qf6+ {[%emt 0:00:04]} Ke8 {[%emt 0:00:15]} 1/2-1/2